[Event "Live Chess"]
[Site "Chess.com"]
[Date "2024.06.01"]
[Round "-"]
[White "Mangoalo"]
[Black "Velocity"]
[Result "0-1"]
[WhiteElo "995"]
[BlackElo "1713"]
[TimeControl "300"]
[EndTime "9:46:41 PDT"]
[Termination "Velocity won by resignation"]

1. e4 {[%clk 0:04:58.5]} 1... c5 {[%clk 0:04:59.2]} 2. Nf3 {[%clk 0:04:56.3]}
2... d6 {[%clk 0:04:58.4]} 3. d4 {[%clk 0:04:55.9]} 3... cxd4 {[%clk 0:04:58.3]}
4. Nxd4 {[%clk 0:04:55.3]} 4... Nf6 {[%clk 0:04:57.6]} 5. Nc3 {[%clk 0:04:54.4]}
5... g6 {[%clk 0:04:55.8]} 6. f4 {[%clk 0:04:53.3]} 6... Bg7 {[%clk 0:04:54.9]}
7. Bb5+ {[%clk 0:04:47.7]} 7... Bd7 {[%clk 0:04:53.3]} 8. Bxd7+ {[%clk
0:04:45.8]} 8... Qxd7 {[%clk 0:04:53.2]} 9. O-O {[%clk 0:04:43.3]} 9... Nc6
{[%clk 0:04:52.3]} 10. Nxc6 {[%clk 0:04:40.3]} 10... bxc6 {[%clk 0:04:52.2]} 11.
Qf3 {[%clk 0:04:33.6]} 11... O-O {[%clk 0:04:47.6]} 12. e5 {[%clk 0:04:32.6]}
12... dxe5 {[%clk 0:04:46.1]} 13. fxe5 {[%clk 0:04:32.5]} 13... Nd5 {[%clk
0:04:44]} 14. Nxd5 {[%clk 0:04:30.6]} 14... cxd5 {[%clk 0:04:43.9]} 15. Bf4
{[%clk 0:04:27.5]} 15... e6 {[%clk 0:04:42.6]} 16. g4 {[%clk 0:04:20.8]} 16...
Rac8 {[%clk 0:04:37.1]} 17. c3 {[%clk 0:04:17.9]} 17... Qb5 {[%clk 0:04:35.5]}
18. b4 {[%clk 0:04:13]} 18... Qc4 {[%clk 0:04:30.9]} 19. Rac1 {[%clk 0:04:08.1]}
19... Qxa2 {[%clk 0:04:26.6]} 20. Rf2 {[%clk 0:04:06.4]} 20... Qa3 {[%clk
0:04:24.3]} 21. Bd2 {[%clk 0:04:01.3]} 21... Bxe5 {[%clk 0:04:19.5]} 22. h4
{[%clk 0:03:57.1]} 22... Bg7 {[%clk 0:04:07.4]} 23. h5 {[%clk 0:03:56.1]} 23...
Rc7 {[%clk 0:04:03.5]} 24. h6 {[%clk 0:03:53.5]} 24... Be5 {[%clk 0:03:57.8]}
25. g5 {[%clk 0:03:45.5]} 25... Rfc8 {[%clk 0:03:55.8]} 26. Re1 {[%clk
0:03:36.3]} 26... Bxc3 {[%clk 0:03:48.8]} 27. Qxf7+ {[%clk 0:03:34.3]} 27... Kh8
{[%clk 0:03:46.9]} 28. Qf6+ {[%clk 0:03:29.7]} 28... Bxf6 {[%clk 0:03:45.3]} 29.
gxf6 {[%clk 0:03:28.1]} 29... Rf7 {[%clk 0:03:39.2]} 30. Rc1 {[%clk 0:03:24]}
30... Rxc1+ {[%clk 0:03:36.1]} 31. Bxc1 {[%clk 0:03:23.9]} 31... Qxc1+ {[%clk
0:03:35.3]} 0-1

[Event "Live Chess"]
[Site "Chess.com"]
[Date "2024.06.01"]
[Round "-"]
[White "Inglaterra"]
[Black "JP56789"]
[Result "0-1"]
[WhiteElo "2033"]
[BlackElo "2265"]
[TimeControl "300"]
[EndTime "9:46:42 PDT"]
[Termination "JP56789 won by resignation"]

1. c4 {[%clk 0:04:57.7]} 1... Nf6 {[%clk 0:04:59.3]} 2. Nf3 {[%clk 0:04:54.7]}
2... g6 {[%clk 0:04:58.7]} 3. g3 {[%clk 0:04:53.6]} 3... Bg7 {[%clk 0:04:58.6]}
4. Bg2 {[%clk 0:04:51.8]} 4... O-O {[%clk 0:04:58.5]} 5. O-O {[%clk 0:04:50.7]}
5... d6 {[%clk 0:04:58.4]} 6. b3 {[%clk 0:04:49.4]} 6... Ne4 {[%clk 0:04:52.4]}
7. d4 {[%clk 0:04:48.3]} 7... c5 {[%clk 0:04:50.9]} 8. Bb2 {[%clk 0:04:46.6]}
8... Nc6 {[%clk 0:04:49]} 9. Nbd2 {[%clk 0:04:43.4]} 9... Nxd2 {[%clk 0:04:46]}
10. Qxd2 {[%clk 0:04:41.3]} 10... Bg4 {[%clk 0:04:45.2]} 11. d5 {[%clk
0:04:32.6]} 11... Bxb2 {[%clk 0:04:41.9]} 12. Qxb2 {[%clk 0:04:29.2]} 12... Bxf3
{[%clk 0:04:41.5]} 13. Bxf3 {[%clk 0:04:27.6]} 13... Ne5 {[%clk 0:04:34.1]} 14.
Bg2 {[%clk 0:04:23.8]} 14... b5 {[%clk 0:04:31.4]} 15. cxb5 {[%clk 0:04:11.3]}
15... a6 {[%clk 0:04:30.6]} 16. bxa6 {[%clk 0:04:05.9]} 16... Rxa6 {[%clk
0:04:30.5]} 17. f4 {[%clk 0:04:01.1]} 17... Nd7 {[%clk 0:04:28.6]} 18. e4 {[%clk
0:03:59.7]} 18... Qb6 {[%clk 0:04:26.8]} 19. Qf2 {[%clk 0:03:47.7]} 19... Rfa8
{[%clk 0:04:24.4]} 20. Bh3 {[%clk 0:03:38.7]} 20... Nf6 {[%clk 0:04:20.9]} 21.
Rfe1 {[%clk 0:03:28.4]} 21... Qb4 {[%clk 0:04:17.6]} 22. Bg2 {[%clk 0:03:19.5]}
22... c4 {[%clk 0:04:08.3]} 23. bxc4 {[%clk 0:03:10.3]} 23... Qxc4 {[%clk
0:04:06]} 24. Rac1 {[%clk 0:03:03.8]} 24... Qxa2 {[%clk 0:04:04.3]} 25. Rc2
{[%clk 0:02:40.2]} 25... Qa5 {[%clk 0:04:01.1]} 26. e5 {[%clk 0:02:33.6]} 26...
Ng4 {[%clk 0:03:37.6]} 27. Qe2 {[%clk 0:02:26.9]} 27... Qb6+ {[%clk 0:03:36.1]}
28. Kh1 {[%clk 0:02:25.9]} 28... Nf2+ {[%clk 0:03:33]} 29. Kg1 {[%clk
0:02:23.6]} 29... Nd3+ {[%clk 0:03:32.6]} 30. Kh1 {[%clk 0:02:21.2]} 30... Nxe1
{[%clk 0:03:32]} 31. Qxe1 {[%clk 0:02:20.6]} 31... Ra1 {[%clk 0:03:31.3]} 32.
Rc1 {[%clk 0:02:19.3]} 32... Qb2 {[%clk 0:03:29.9]} 0-1

[Event "Live Chess"]
[Site "Chess.com"]
[Date "2024.06.01"]
[Round "-"]
[White "DukeBG"]
[Black "Delacorta"]
[Result "0-1"]
[WhiteElo "477"]
[BlackElo "1397"]
[TimeControl "300"]
[EndTime "9:46:53 PDT"]
[Termination "Delacorta won on time"]

1. e4 {[%clk 0:04:54.1]} 1... e6 {[%clk 0:04:58.9]} 2. d4 {[%clk 0:04:52.2]}
2... d5 {[%clk 0:04:58]} 3. f3 {[%clk 0:04:49.3]} 3... dxe4 {[%clk 0:04:50.9]}
4. fxe4 {[%clk 0:04:47.2]} 4... Qh4+ {[%clk 0:04:48.9]} 5. Kd2 {[%clk 0:04:31]}
5... Qxe4 {[%clk 0:04:45]} 6. Qf3 {[%clk 0:04:22.5]} 6... Qxd4+ {[%clk
0:04:36.5]} 7. Ke1 {[%clk 0:04:18.6]} 7... Nf6 {[%clk 0:04:27.7]} 8. Be3 {[%clk
0:04:10.1]} 8... Qxb2 {[%clk 0:04:25.4]} 9. Bd2 {[%clk 0:03:08.1]} 9... Nc6
{[%clk 0:03:53.7]} 10. Qc3 {[%clk 0:03:02.9]} 10... Qxc3 {[%clk 0:03:50]} 11.
Bxc3 {[%clk 0:03:01.5]} 11... Bb4 {[%clk 0:03:48.3]} 12. a3 {[%clk 0:02:57.1]}
12... Bxc3+ {[%clk 0:03:46.3]} 13. Nxc3 {[%clk 0:02:55.7]} 13... Nd4 {[%clk
0:03:45.2]} 14. Rd1 {[%clk 0:02:47.3]} 14... Nxc2+ {[%clk 0:03:43.5]} 15. Kd2
{[%clk 0:02:38.6]} 15... Nxa3 {[%clk 0:03:39.2]} 16. Nf3 {[%clk 0:02:29.8]}
16... Bd7 {[%clk 0:03:34.2]} 17. Bd3 {[%clk 0:02:23.6]} 17... O-O-O {[%clk
0:03:31.3]} 18. Ra1 {[%clk 0:02:17.3]} 18... Bb5 {[%clk 0:03:17.4]} 19. Rxa3
{[%clk 0:02:13.1]} 19... Bxd3 {[%clk 0:03:14.8]} 20. Rxa7 {[%clk 0:01:50]} 20...
Ba6+ {[%clk 0:03:04.6]} 21. Kc2 {[%clk 0:01:42.2]} 21... Kb8 {[%clk 0:03:03.4]}
22. Rxa6 {[%clk 0:01:11.3]} 22... bxa6 {[%clk 0:03:01.9]} 23. Rb1+ {[%clk
0:01:08.8]} 23... Ka7 {[%clk 0:02:57]} 24. Ne5 {[%clk 0:00:56.2]} 24... Rd6
{[%clk 0:02:42]} 25. Nxf7 {[%clk 0:00:51.8]} 25... Rhd8 {[%clk 0:02:35.7]} 26.
Nxd8 {[%clk 0:00:46.5]} 26... Rxd8 {[%clk 0:02:34.3]} 27. Kb3 {[%clk 0:00:23.5]}
27... Rb8+ {[%clk 0:02:31.3]} 28. Ka2 {[%clk 0:00:21.3]} 28... Rxb1 {[%clk
0:02:29.8]} 29. Nxb1 {[%clk 0:00:19.9]} 29... Kb6 {[%clk 0:02:28.5]} 30. Kb2
{[%clk 0:00:13.4]} 30... Kc5 {[%clk 0:02:24.2]} 31. Nd2 {[%clk 0:00:11.4]} 31...
Kb4 {[%clk 0:02:21.5]} 32. g3 {[%clk 0:00:00.8]} 32... Nd5 {[%clk 0:02:20.1]}
0-1

[Event "Live Chess"]
[Site "Chess.com"]
[Date "2024.06.01"]
[Round "-"]
[White "Dhaydon19"]
[Black "seasidecastle27"]
[Result "1-0"]
[WhiteElo "2699"]
[BlackElo "1951"]
[TimeControl "300"]
[EndTime "9:47:12 PDT"]
[Termination "Dhaydon19 won by resignation"]

1. d4 {[%clk 0:04:58.4]} 1... d5 {[%clk 0:04:54.2]} 2. Nf3 {[%clk 0:04:58]} 2...
Nf6 {[%clk 0:04:52.5]} 3. g3 {[%clk 0:04:57.6]} 3... e6 {[%clk 0:04:51]} 4. Bg2
{[%clk 0:04:57.3]} 4... Be7 {[%clk 0:04:49.8]} 5. O-O {[%clk 0:04:57]} 5... O-O
{[%clk 0:04:48.6]} 6. c4 {[%clk 0:04:56.6]} 6... c6 {[%clk 0:04:47.4]} 7. Qc2
{[%clk 0:04:55.8]} 7... Nbd7 {[%clk 0:04:45.5]} 8. Nc3 {[%clk 0:04:55.1]} 8...
b6 {[%clk 0:04:43.8]} 9. b3 {[%clk 0:04:54.4]} 9... Bb7 {[%clk 0:04:42.5]} 10.
Rd1 {[%clk 0:04:53.7]} 10... Rc8 {[%clk 0:04:41.3]} 11. Bb2 {[%clk 0:04:51.5]}
11... Qc7 {[%clk 0:04:38.7]} 12. Ne5 {[%clk 0:04:49.4]} 12... Nxe5 {[%clk
0:04:32.2]} 13. dxe5 {[%clk 0:04:48.7]} 13... Qxe5 {[%clk 0:04:31]} 14. Nxd5
{[%clk 0:04:46.8]} 14... Qb8 {[%clk 0:04:21.3]} 15. Nxe7+ {[%clk 0:04:45.6]}
15... Kh8 {[%clk 0:04:17.2]} 16. Nxc8 {[%clk 0:04:44.8]} 16... Rxc8 {[%clk
0:04:15.6]} 17. Bxf6 {[%clk 0:04:44.1]} 1-0

[Event "Live Chess"]
[Site "Chess.com"]
[Date "2024.06.01"]
[Round "-"]
[White "KGreenGator"]
[Black "ProfPoisson"]
[Result "1-0"]
[WhiteElo "1775"]
[BlackElo "1233"]
[TimeControl "300"]
[EndTime "9:47:13 PDT"]
[Termination "KGreenGator won on time"]

1. c4 {[%clk 0:04:58.1]} 1... e6 {[%clk 0:04:55.6]} 2. Nc3 {[%clk 0:04:56.9]}
2... f5 {[%clk 0:04:51.7]} 3. e3 {[%clk 0:04:55.8]} 3... Nf6 {[%clk 0:04:50.1]}
4. d4 {[%clk 0:04:54.8]} 4... Bb4 {[%clk 0:04:47.1]} 5. Bd2 {[%clk 0:04:52.8]}
5... Bxc3 {[%clk 0:04:44.6]} 6. Bxc3 {[%clk 0:04:50.7]} 6... O-O {[%clk
0:04:39.4]} 7. Nf3 {[%clk 0:04:48.2]} 7... Ne4 {[%clk 0:04:36.8]} 8. Qc2 {[%clk
0:04:46.1]} 8... b6 {[%clk 0:04:34.3]} 9. Bd3 {[%clk 0:04:43.9]} 9... Bb7 {[%clk
0:04:32.2]} 10. O-O {[%clk 0:04:42.1]} 10... Nxc3 {[%clk 0:04:25.6]} 11. Qxc3
{[%clk 0:04:36.1]} 11... Bxf3 {[%clk 0:04:23.9]} 12. gxf3 {[%clk 0:04:35.7]}
12... Qg5+ {[%clk 0:04:22.1]} 13. Kh1 {[%clk 0:04:35.4]} 13... Rf6 {[%clk
0:04:16.2]} 14. Rg1 {[%clk 0:04:33.6]} 14... Qh4 {[%clk 0:04:13.9]} 15. Rg2
{[%clk 0:04:31.4]} 15... d6 {[%clk 0:03:56.3]} 16. d5 {[%clk 0:04:30.2]} 16...
e5 {[%clk 0:03:53.8]} 17. Rag1 {[%clk 0:04:16.3]} 17... Rg6 {[%clk 0:03:43.2]}
18. Bxf5 {[%clk 0:04:08.4]} 18... Rxg2 {[%clk 0:03:30]} 19. Rxg2 {[%clk
0:04:04.7]} 19... Na6 {[%clk 0:03:25.8]} 20. Be6+ {[%clk 0:04:00.8]} 20... Kh8
{[%clk 0:03:21.3]} 21. b4 {[%clk 0:03:52.6]} 21... Rf8 {[%clk 0:03:11.8]} 22. f4
{[%clk 0:03:48.1]} 22... Qh5 {[%clk 0:02:59.5]} 23. Qa1 {[%clk 0:03:34.9]} 23...
Nxb4 {[%clk 0:02:55.1]} 24. fxe5 {[%clk 0:03:32.3]} 24... dxe5 {[%clk
0:02:43.4]} 25. h3 {[%clk 0:03:19.3]} 25... Nd3 {[%clk 0:02:41.2]} 26. Qf1
{[%clk 0:03:08.8]} 26... Nc5 {[%clk 0:02:05.6]} 27. Bg4 {[%clk 0:03:03.5]} 27...
Qh6 {[%clk 0:02:01.1]} 28. Qe2 {[%clk 0:02:52.6]} 28... e4 {[%clk 0:01:51.5]}
29. Qb2 {[%clk 0:02:49.3]} 29... Nd3 {[%clk 0:01:42.2]} 30. Qc2 {[%clk
0:02:43.2]} 30... Qh4 {[%clk 0:01:28.3]} 31. Qc3 {[%clk 0:02:33]} 31... Nxf2+
{[%clk 0:01:24]} 32. Kg1 {[%clk 0:02:26.6]} 32... Rf7 {[%clk 0:00:29.3]} 33. Be6
{[%clk 0:02:18.8]} 33... Nxh3+ {[%clk 0:00:23.5]} 34. Bxh3 {[%clk 0:02:16.3]}
34... Qxh3 {[%clk 0:00:20.1]} 35. Qa3 {[%clk 0:02:06.4]} 35... Qh5 {[%clk
0:00:14.5]} 36. Qc1 {[%clk 0:02:00.6]} 36... Qf3 {[%clk 0:00:11.7]} 37. a3
{[%clk 0:01:53.7]} 37... h5 {[%clk 0:00:10.4]} 38. Qd2 {[%clk 0:01:41.7]} 38...
h4 {[%clk 0:00:09.9]} 39. Qf2 {[%clk 0:01:37.5]} 39... Qd1+ {[%clk 0:00:07.7]}
40. Kh2 {[%clk 0:01:36.1]} 40... Rxf2 {[%clk 0:00:05.9]} 41. Rxf2 {[%clk
0:01:35.1]} 41... Qg4 {[%clk 0:00:04.6]} 42. Rg2 {[%clk 0:01:32.4]} 42... Qf3
{[%clk 0:00:02.6]} 43. a4 {[%clk 0:01:30.2]} 43... Qxe3 {[%clk 0:00:01.7]} 44.
a5 {[%clk 0:01:29.2]} 44... Qd4 {[%clk 0:00:00.3]} 45. axb6 {[%clk 0:01:28]} 1-0

[Event "Live Chess"]
[Site "Chess.com"]
[Date "2024.06.01"]
[Round "-"]
[White "IanCalvert2"]
[Black "NottheBishopSacrifice"]
[Result "0-1"]
[WhiteElo "1541"]
[BlackElo "2147"]
[TimeControl "300"]
[EndTime "9:47:19 PDT"]
[Termination "NottheBishopSacrifice won on time"]

1. b3 {[%clk 0:04:56.9]} 1... d5 {[%clk 0:04:58.7]} 2. Bb2 {[%clk 0:04:55.9]}
2... c5 {[%clk 0:04:58.4]} 3. e3 {[%clk 0:04:54]} 3... Nf6 {[%clk 0:04:56.8]} 4.
Nf3 {[%clk 0:04:52.1]} 4... g6 {[%clk 0:04:56.3]} 5. c4 {[%clk 0:04:48.5]} 5...
dxc4 {[%clk 0:04:55]} 6. Bxc4 {[%clk 0:04:44.7]} 6... Bg7 {[%clk 0:04:50.8]} 7.
O-O {[%clk 0:04:39.7]} 7... O-O {[%clk 0:04:48.6]} 8. d4 {[%clk 0:04:34.9]} 8...
cxd4 {[%clk 0:04:47.6]} 9. Qxd4 {[%clk 0:04:31.9]} 9... Nc6 {[%clk 0:04:45.5]}
10. Qxd8 {[%clk 0:04:27.6]} 10... Rxd8 {[%clk 0:04:45.4]} 11. Nc3 {[%clk
0:04:23.3]} 11... Bg4 {[%clk 0:04:44.7]} 12. Rfd1 {[%clk 0:04:03.1]} 12... Bxf3
{[%clk 0:04:38.6]} 13. gxf3 {[%clk 0:03:59.7]} 13... Ne5 {[%clk 0:04:37.5]} 14.
Be2 {[%clk 0:03:56.6]} 14... Ne8 {[%clk 0:04:33.8]} 15. f4 {[%clk 0:03:52]}
15... Nc6 {[%clk 0:04:31.6]} 16. Na4 {[%clk 0:03:48.8]} 16... Bxb2 {[%clk
0:04:28.8]} 17. Nxb2 {[%clk 0:03:45.9]} 17... e6 {[%clk 0:04:28.2]} 18. Bb5
{[%clk 0:03:24.5]} 18... Nb4 {[%clk 0:04:19.5]} 19. Bxe8 {[%clk 0:03:10.1]}
19... Rxe8 {[%clk 0:04:18.2]} 20. Rd7 {[%clk 0:03:05.6]} 20... b5 {[%clk
0:04:11.6]} 21. Rc1 {[%clk 0:02:43.8]} 21... Nxa2 {[%clk 0:04:08.5]} 22. Rcc7
{[%clk 0:02:40.6]} 22... Rf8 {[%clk 0:04:07.8]} 23. Nd3 {[%clk 0:02:34.3]} 23...
Rad8 {[%clk 0:04:04.7]} 24. Rxa7 {[%clk 0:02:27.8]} 24... Rxd7 {[%clk
0:04:03.3]} 25. Rxd7 {[%clk 0:02:24.8]} 25... Nc3 {[%clk 0:04:02.5]} 26. Ne5
{[%clk 0:02:01.5]} 26... Nd5 {[%clk 0:03:56.1]} 27. Kg2 {[%clk 0:01:53.6]} 27...
f6 {[%clk 0:03:54.1]} 28. Nd3 {[%clk 0:01:43.2]} 28... Rf7 {[%clk 0:03:53.2]}
29. Rxf7 {[%clk 0:01:39.6]} 29... Kxf7 {[%clk 0:03:53.1]} 30. e4 {[%clk
0:01:35.6]} 30... Nc3 {[%clk 0:03:51]} 31. Kf3 {[%clk 0:01:28.7]} 31... Ke7
{[%clk 0:03:49.8]} 32. Ke3 {[%clk 0:01:22.5]} 32... Kd6 {[%clk 0:03:48.7]} 33.
f3 {[%clk 0:01:16.2]} 33... e5 {[%clk 0:03:46.5]} 34. Kd2 {[%clk 0:01:10.8]}
34... b4 {[%clk 0:03:42.2]} 35. fxe5+ {[%clk 0:01:04.3]} 35... fxe5 {[%clk
0:03:40.5]} 36. Nxb4 {[%clk 0:01:02.9]} 36... Nb5 {[%clk 0:03:40.1]} 37. Nd5
{[%clk 0:00:59.1]} 37... Nd4 {[%clk 0:03:38.6]} 38. Ke3 {[%clk 0:00:57.4]} 38...
Nxb3 {[%clk 0:03:37.6]} 39. Nf6 {[%clk 0:00:56.2]} 39... h5 {[%clk 0:03:34.6]}
40. f4 {[%clk 0:00:52]} 40... Ke6 {[%clk 0:03:33]} 41. fxe5 {[%clk 0:00:49.3]}
41... Kxe5 {[%clk 0:03:31.6]} 42. Nd7+ {[%clk 0:00:47.8]} 42... Ke6 {[%clk
0:03:30.3]} 43. Nb6 {[%clk 0:00:46.1]} 43... Nc5 {[%clk 0:03:28.8]} 44. Nd5
{[%clk 0:00:41]} 44... Nd7 {[%clk 0:03:27.2]} 45. Nf4+ {[%clk 0:00:36]} 45...
Kf7 {[%clk 0:03:25.2]} 46. Kd4 {[%clk 0:00:33.5]} 46... h4 {[%clk 0:03:24.5]}
47. e5 {[%clk 0:00:30.5]} 47... Nf8 {[%clk 0:03:23.6]} 48. Ke4 {[%clk
0:00:23.8]} 48... g5 {[%clk 0:03:22.5]} 49. Nd5 {[%clk 0:00:15.2]} 49... Ke6
{[%clk 0:03:19.5]} 50. Ne3 {[%clk 0:00:13]} 50... Ng6 {[%clk 0:03:17]} 51. Ng4
{[%clk 0:00:11.1]} 51... Nf4 {[%clk 0:03:15.3]} 52. Nh6 {[%clk 0:00:05.7]} 52...
Ng6 {[%clk 0:03:10.9]} 53. Ng4 {[%clk 0:00:04.1]} 53... h3 {[%clk 0:03:10.6]}
54. Nf2 {[%clk 0:00:02.3]} 54... Nxe5 {[%clk 0:03:08.6]} 55. Nxh3 {[%clk
0:00:00.3]} 55... g4 {[%clk 0:03:07.1]} 0-1

[Event "Live Chess"]
[Site "Chess.com"]
[Date "2024.06.01"]
[Round "-"]
[White "StoreySniper"]
[Black "CheckThis4"]
[Result "1-0"]
[WhiteElo "2547"]
[BlackElo "2682"]
[TimeControl "300"]
[EndTime "9:47:33 PDT"]
[Termination "StoreySniper won on time"]

1. c4 {[%clk 0:04:57.8]} 1... g6 {[%clk 0:04:51.6]} 2. g3 {[%clk 0:04:57]} 2...
Bg7 {[%clk 0:04:49.9]} 3. Bg2 {[%clk 0:04:56.7]} 3... e5 {[%clk 0:04:41.3]} 4.
Nc3 {[%clk 0:04:56]} 4... Nc6 {[%clk 0:04:39.6]} 5. d3 {[%clk 0:04:51.9]} 5...
d6 {[%clk 0:04:38.1]} 6. e3 {[%clk 0:04:48.6]} 6... Nge7 {[%clk 0:04:34.9]} 7.
Nge2 {[%clk 0:04:48.1]} 7... Be6 {[%clk 0:04:33.3]} 8. e4 {[%clk 0:04:43.2]}
8... O-O {[%clk 0:04:19.4]} 9. Be3 {[%clk 0:04:42.3]} 9... Qd7 {[%clk
0:04:14.1]} 10. f3 {[%clk 0:04:41.5]} 10... f5 {[%clk 0:04:10.2]} 11. Qd2 {[%clk
0:04:39.6]} 11... Rf7 {[%clk 0:04:00.2]} 12. O-O-O {[%clk 0:04:37.2]} 12... a6
{[%clk 0:03:56.9]} 13. Kb1 {[%clk 0:04:32.4]} 13... b5 {[%clk 0:03:54.6]} 14.
Nd5 {[%clk 0:04:25.1]} 14... fxe4 {[%clk 0:03:36.1]} 15. fxe4 {[%clk 0:04:20.3]}
15... Raf8 {[%clk 0:03:29.8]} 16. Rhf1 {[%clk 0:04:10]} 16... Nd4 {[%clk
0:03:15.3]} 17. Nxd4 {[%clk 0:03:52.7]} 17... exd4 {[%clk 0:03:13.3]} 18. Bg5
{[%clk 0:03:49.3]} 18... Nc6 {[%clk 0:02:53.6]} 19. Rxf7 {[%clk 0:03:40.9]}
19... Rxf7 {[%clk 0:02:49.6]} 20. Rf1 {[%clk 0:03:32.3]} 20... Rxf1+ {[%clk
0:02:44.2]} 21. Bxf1 {[%clk 0:03:32.2]} 21... Qf7 {[%clk 0:02:39.5]} 22. Be2
{[%clk 0:02:52.7]} 22... Ne5 {[%clk 0:02:30.2]} 23. cxb5 {[%clk 0:02:46.5]}
23... Bxd5 {[%clk 0:02:18.4]} 24. exd5 {[%clk 0:02:44.1]} 24... axb5 {[%clk
0:02:17.2]} 25. Bf4 {[%clk 0:02:30.3]} 25... Qxd5 {[%clk 0:02:12]} 26. Bd1
{[%clk 0:02:29.5]} 26... c5 {[%clk 0:01:58.3]} 27. Qa5 {[%clk 0:02:21.3]} 27...
Qh1 {[%clk 0:01:49.1]} 28. Qd8+ {[%clk 0:02:09.6]} 28... Bf8 {[%clk 0:01:47.6]}
29. Kc2 {[%clk 0:01:57.4]} 29... Qxh2+ {[%clk 0:01:34.7]} 30. Kb3 {[%clk
0:01:56]} 30... c4+ {[%clk 0:01:31.1]} 31. Ka3 {[%clk 0:01:37.9]} 31... b4+
{[%clk 0:01:17.5]} 32. Ka4 {[%clk 0:01:29.1]} 32... Nf7 {[%clk 0:01:03.8]} 33.
Qd7 {[%clk 0:01:10.2]} 33... Qxb2 {[%clk 0:01:00.6]} 34. Bg4 {[%clk 0:00:55.9]}
34... Qxa2+ {[%clk 0:00:22.1]} 35. Kb5 {[%clk 0:00:54.5]} 35... Qa8 {[%clk
0:00:18.5]} 36. Be6 {[%clk 0:00:52.3]} 36... Qb8+ {[%clk 0:00:17.8]} 37. Kxc4
{[%clk 0:00:49.8]} 37... d5+ {[%clk 0:00:15.4]} 38. Kb3 {[%clk 0:00:46]} 1-0

[Event "Live Chess"]
[Site "Chess.com"]
[Date "2024.06.01"]
[Round "-"]
[White "willc-h99"]
[Black "Bradfield133"]
[Result "1-0"]
[WhiteElo "2661"]
[BlackElo "2025"]
[TimeControl "300"]
[EndTime "9:47:33 PDT"]
[Termination "willc-h99 won on time"]

1. d4 {[%clk 0:04:57.7]} 1... d6 {[%clk 0:04:58]} 2. Bg5 {[%clk 0:04:57.1]} 2...
Nd7 {[%clk 0:04:54.6]} 3. e3 {[%clk 0:04:55.8]} 3... f5 {[%clk 0:04:38.9]} 4.
Nd2 {[%clk 0:04:52]} 4... Ngf6 {[%clk 0:04:33.9]} 5. Bd3 {[%clk 0:04:48.3]} 5...
h6 {[%clk 0:04:26.8]} 6. Bxf5 {[%clk 0:04:43.9]} 6... Nb6 {[%clk 0:04:09.6]} 7.
Bg6+ {[%clk 0:04:41.6]} 7... Kd7 {[%clk 0:04:06.8]} 8. Bxf6 {[%clk 0:04:38.7]}
8... gxf6 {[%clk 0:04:00.7]} 9. Ne4 {[%clk 0:04:23]} 9... c6 {[%clk 0:03:53.3]}
10. a4 {[%clk 0:04:18]} 10... a5 {[%clk 0:03:49.9]} 11. Bf5+ {[%clk 0:04:07.9]}
11... Kc7 {[%clk 0:03:47.6]} 12. Bxc8 {[%clk 0:04:06.2]} 12... Qxc8 {[%clk
0:03:43.6]} 13. Nf3 {[%clk 0:03:58.2]} 13... h5 {[%clk 0:03:21.4]} 14. h3 {[%clk
0:03:50.5]} 14... Bh6 {[%clk 0:03:16.1]} 15. Qd3 {[%clk 0:03:40.2]} 15... Qf5
{[%clk 0:02:59.5]} 16. b3 {[%clk 0:03:20.9]} 16... Rhg8 {[%clk 0:02:45.5]} 17.
Nh4 {[%clk 0:03:15.1]} 17... Qe6 {[%clk 0:02:33.5]} 18. O-O-O {[%clk 0:03:08.2]}
18... Nd5 {[%clk 0:02:25.4]} 19. Nd2 {[%clk 0:02:28.4]} 19... Qd7 {[%clk
0:01:54.4]} 20. c3 {[%clk 0:02:18.4]} 20... Rad8 {[%clk 0:01:34.5]} 21. Kb2
{[%clk 0:02:06.5]} 21... Bg5 {[%clk 0:01:16.5]} 22. Nhf3 {[%clk 0:02:05]} 22...
Bh6 {[%clk 0:01:10.1]} 23. Rhg1 {[%clk 0:02:03.8]} 23... e6 {[%clk 0:00:48.3]}
24. g3 {[%clk 0:01:57.6]} 24... Qg7 {[%clk 0:00:40.1]} 25. e4 {[%clk 0:01:52.6]}
25... Ne7 {[%clk 0:00:33.7]} 26. Nc4 {[%clk 0:01:51]} 26... b6 {[%clk
0:00:31.2]} 27. Ne3 {[%clk 0:01:31]} 27... Bxe3 {[%clk 0:00:24.4]} 28. Qxe3
{[%clk 0:01:29.3]} 28... f5 {[%clk 0:00:22.5]} 29. Rge1 {[%clk 0:01:24.9]} 29...
Rd7 {[%clk 0:00:18.3]} 30. exf5 {[%clk 0:01:21.3]} 30... exf5 {[%clk 0:00:15.9]}
31. Qd3 {[%clk 0:01:18.6]} 31... Kb7 {[%clk 0:00:09.5]} 32. c4 {[%clk
0:01:12.3]} 32... Rf8 {[%clk 0:00:08]} 33. Re6 {[%clk 0:01:10.9]} 33... Rf6
{[%clk 0:00:04.4]} 34. Rde1 {[%clk 0:01:09.6]} 34... Rxe6 {[%clk 0:00:02.3]} 35.
Rxe6 {[%clk 0:01:09.5]} 35... Qf7 {[%clk 0:00:01.6]} 36. Ng5 {[%clk 0:01:08.7]}
1-0

[Event "Live Chess"]
[Site "Chess.com"]
[Date "2024.06.01"]
[Round "-"]
[White "alexholowczak"]
[Black "DoctorMantisTobogganMD"]
[Result "0-1"]
[WhiteElo "1450"]
[BlackElo "2206"]
[TimeControl "300"]
[EndTime "9:47:34 PDT"]
[Termination "DoctorMantisTobogganMD won by checkmate"]

1. e4 {[%clk 0:04:57.2]} 1... g6 {[%clk 0:04:59.3]} 2. d4 {[%clk 0:04:55.6]}
2... c6 {[%clk 0:04:59.2]} 3. Nf3 {[%clk 0:04:53.3]} 3... Bg7 {[%clk 0:04:57.1]}
4. c3 {[%clk 0:04:52]} 4... d5 {[%clk 0:04:53.1]} 5. e5 {[%clk 0:04:50.3]} 5...
Bg4 {[%clk 0:04:51.4]} 6. Be2 {[%clk 0:04:48.6]} 6... f6 {[%clk 0:04:49]} 7.
exf6 {[%clk 0:04:47]} 7... Nxf6 {[%clk 0:04:48.9]} 8. O-O {[%clk 0:04:45.8]}
8... O-O {[%clk 0:04:48]} 9. Bg5 {[%clk 0:04:41]} 9... Nbd7 {[%clk 0:04:42.2]}
10. Nbd2 {[%clk 0:04:38.7]} 10... Qc7 {[%clk 0:04:40.1]} 11. h3 {[%clk
0:04:33.4]} 11... Bxf3 {[%clk 0:04:38.5]} 12. Nxf3 {[%clk 0:04:28.1]} 12... e5
{[%clk 0:04:37.5]} 13. dxe5 {[%clk 0:04:24.9]} 13... Nxe5 {[%clk 0:04:37.4]} 14.
Nxe5 {[%clk 0:04:22.2]} 14... Qxe5 {[%clk 0:04:37.3]} 15. Bxf6 {[%clk
0:04:15.6]} 15... Qxf6 {[%clk 0:04:35.3]} 16. Qd3 {[%clk 0:04:05.7]} 16... Rae8
{[%clk 0:03:54.1]} 17. Bf3 {[%clk 0:03:54.7]} 17... Re7 {[%clk 0:03:50]} 18.
Rfe1 {[%clk 0:03:48.1]} 18... Rfe8 {[%clk 0:03:48.7]} 19. Rxe7 {[%clk
0:03:40.2]} 19... Qxe7 {[%clk 0:03:48.6]} 20. Rd1 {[%clk 0:03:33]} 20... Bh6
{[%clk 0:03:43.4]} 21. c4 {[%clk 0:03:16.6]} 21... dxc4 {[%clk 0:03:31.6]} 22.
Qxc4+ {[%clk 0:03:14.8]} 22... Kh8 {[%clk 0:03:31]} 23. Qb3 {[%clk 0:02:58.3]}
23... Bf4 {[%clk 0:03:13.9]} 24. g3 {[%clk 0:02:51.4]} 24... Be5 {[%clk
0:03:06.9]} 25. Kg2 {[%clk 0:02:46.2]} 25... Rf8 {[%clk 0:03:02.6]} 26. Qc2
{[%clk 0:02:10.1]} 26... Qf6 {[%clk 0:02:57.6]} 27. Rd3 {[%clk 0:01:42.9]} 27...
Kg7 {[%clk 0:02:55.6]} 28. Qb3 {[%clk 0:01:37.8]} 28... Rf7 {[%clk 0:02:53.8]}
29. Qa3 {[%clk 0:01:14.3]} 29... a6 {[%clk 0:02:44.1]} 30. Rd2 {[%clk
0:00:48.9]} 30... Bd4 {[%clk 0:02:40.3]} 31. b4 {[%clk 0:00:38.8]} 31... Bc3
{[%clk 0:02:36.4]} 32. Re2 {[%clk 0:00:34.8]} 32... Qxf3+ {[%clk 0:02:34.9]} 33.
Kf1 {[%clk 0:00:32.4]} 33... Qh1# {[%clk 0:02:33.6]} 0-1